fUST/lending_fUST_20250220
["ID","MTS","AMOUNT","RATE_DAILY","PERIOD"]
[353737101,1740000655082,-395.0,0.00016113,2]
[353737102,1740000655091,-395.0,0.00016113,2]
[353737103,1740000655100,-395.0,0.00016113,2]
[353737104,1740000655109,-395.0,0.00016113,2]
[353737105,1740000655118,-395.0,0.00016113,2]
[353737106,1740000655128,-395.0,0.00016113,2]
[353737107,1740000655137,-395.0,0.00016113,2]
[353737108,1740000655147,-395.0,0.00016113,2]
[353737109,1740000655156,-395.0,0.00016113,2]
[353737110,1740000655165,-395.0,0.00016113,2]
[353737111,1740000655174,-395.0,0.00016113,2]
[353737112,1740000655184,-395.0,0.00016113,2]
[353737113,1740000655193,-395.0,0.00016113,2]
[353737114,1740000655202,-395.0,0.00016113,2]
[353737115,1740000655212,-153.0,0.00016113,2]
[353737116,1740000655221,-153.0,0.00016113,2]
[353737117,1740000655230,-153.0,0.00016113,2]
[353737118,1740000655270,-153.0,0.00016113,2]
[353737119,1740000655280,-153.0,0.00016113,2]
[353737120,1740000655289,-153.0,0.00016113,2]
[353737121,1740000655298,-153.0,0.00016113,2]
[353737122,1740000655307,-153.0,0.00016113,2]
[353737123,1740000655317,-153.0,0.00016113,2]
[353737124,1740000655326,-153.0,0.00016113,2]
[353737125,1740000655336,-153.0,0.00016113,2]
[353737126,1740000655346,-153.0,0.00016113,2]
[353737127,1740000655355,-153.0,0.00016113,2]
[353737128,1740000655364,-153.0,0.00016113,2]
[353737129,1740000655373,-153.0,0.00016113,2]
[353737130,1740000655382,-153.0,0.00016113,2]
[353737131,1740000655391,-153.0,0.00016113,2]
[353737132,1740000655401,-153.0,0.00016113,2]
[353737133,1740000655411,-153.0,0.00016113,2]
[353737134,1740000655421,-153.0,0.00016113,2]
[353737135,1740000655430,-153.0,0.00016113,2]
[353737136,1740000655439,-153.0,0.00016113,2]
[353737137,1740000655449,-153.0,0.00016113,2]
[353737138,1740000655458,-153.0,0.00016113,2]
[353737139,1740000655468,-153.0,0.00016113,2]
[353737140,1740000655477,-153.0,0.00016113,2]
[353737141,1740000655487,-153.0,0.00016113,2]
[353737142,1740000655497,-153.0,0.00016113,2]
[353737143,1740000655507,-153.0,0.00016113,2]
[353737144,1740000655517,-153.0,0.00016113,2]
[353737145,1740000655527,-153.0,0.00016113,2]
[353737146,1740000655536,-153.0,0.00016113,2]
[353737147,1740000655546,-153.0,0.00016113,2]
[353737148,1740000655555,-153.0,0.00016113,2]
[353737149,1740000655565,-153.0,0.00016113,2]
[353737150,1740000655575,-153.0,0.00016113,2]
[353737151,1740000655585,-153.0,0.00016113,2]
[353737152,1740000655594,-153.0,0.00016113,2]
[353737153,1740000655604,-153.0,0.00016113,2]
[353737154,1740000655614,-153.0,0.00016113,2]
[353737155,1740000655623,-153.0,0.00016113,2]
[353737156,1740000655633,-153.0,0.00016113,2]
[353737157,1740000655646,-153.0,0.00016113,2]
[353737158,1740000655656,-153.0,0.00016113,2]
[353737159,1740000655665,-153.0,0.00016113,2]
[353737160,1740000655675,-153.0,0.00016113,2]
[353737161,1740000655685,-153.0,0.00016113,2]
[353737162,1740000655694,-153.0,0.00016113,2]
[353737163,1740000655704,-153.0,0.00016113,2]
[353737164,1740000655713,-153.0,0.00016113,2]
[353737165,1740000655724,-153.0,0.00016113,2]
[353737166,1740000655734,-153.0,0.00016113,2]
[353737167,1740000655745,-153.0,0.00016113,2]
[353737168,1740000655754,-153.0,0.00016113,2]
[353737169,1740000655764,-153.0,0.00016113,2]
[353737170,1740000655774,-153.0,0.00016113,2]
[353737171,1740000655783,-153.0,0.00016113,2]
[353737172,1740000655794,-153.0,0.00016113,2]
[353737173,1740000655803,-153.0,0.00016113,2]
[353737174,1740000655813,-153.0,0.00016113,2]
[353737175,1740000655822,-153.0,0.00016113,2]
[353737176,1740000655831,-153.0,0.00016113,2]
[353737177,1740000655841,-153.0,0.00016113,2]
[353737178,1740000655850,-153.0,0.00016113,2]
[353737179,1740000655860,-153.0,0.00016113,2]
[353737180,1740000655869,-153.0,0.00016113,2]
[353737181,1740000655879,-153.0,0.00016113,2]
[353737182,1740000655888,-153.0,0.00016113,2]
[353737183,1740000655898,-153.0,0.00016113,2]
[353737184,1740000655908,-153.0,0.00016113,2]
[353737185,1740000655917,-153.0,0.00016113,2]
[353737186,1740000655927,-153.0,0.00016113,2]
[353737187,1740000655936,-153.0,0.00016113,2]
[353737188,1740000655945,-153.0,0.00016113,2]
[353737189,1740000655966,-153.0,0.00016113,2]
[353737190,1740000655976,-153.0,0.00016113,2]
[353737191,1740000655986,-153.0,0.00016113,2]
[353737192,1740000655997,-153.0,0.00016113,2]
[353737193,1740000656006,-153.0,0.00016113,2]
[353737194,1740000656016,-153.0,0.00016113,2]
[353737195,1740000656026,-153.0,0.00016113,2]
[353737196,1740000656035,-153.0,0.00016113,2]
[353737197,1740000656045,-153.0,0.00016113,2]
[353737198,1740000656055,-153.0,0.00016113,2]
[353737199,1740000656064,-153.0,0.00016113,2]
[353737200,1740000656074,-153.0,0.00016113,2]
[353737201,1740000656084,-153.0,0.00016113,2]
[353737202,1740000656093,-153.0,0.00016113,2]
[353737203,1740000656103,-153.0,0.00016113,2]
[353737204,1740000656112,-153.0,0.00016113,2]
[353737205,1740000656122,-153.0,0.00016113,2]
[353737206,1740000656131,-153.0,0.00016113,2]
[353737207,1740000656141,-565.0,0.00016113,2]
[353737208,1740000656151,-565.0,0.00016113,2]
[353737209,1740000656160,-565.0,0.00016113,2]
[353737210,1740000656170,-436.0,0.00016113,2]
[353737211,1740000656179,-436.0,0.00016113,2]
[353737212,1740000656189,-436.0,0.00016113,2]
[353737213,1740000656199,-436.0,0.00016113,2]
[353737214,1740000656209,-436.0,0.00016113,2]
[353737215,1740000656219,-436.0,0.00016113,2]
[353737216,1740000656229,-436.0,0.00016113,2]
[353737217,1740000656239,-436.0,0.00016113,2]
[353737218,1740000656250,-664.34083493,0.0001614,2]
[353737219,1740000656260,-664.34083493,0.0001624,2]
[353737220,1740000656270,-664.34083493,0.0001634,2]
[353737221,1740000656281,-1501.66515834,0.00016422,2]
[353737222,1740000656291,-477.5488919,0.00016438,2]
[353737223,1740000656301,-787.12,0.00016438,2]
[353737224,1740000656312,-787.12,0.00016438,2]
[353737225,1740000656322,-787.12,0.00016438,2]
[353737226,1740000656332,-787.12,0.00016438,2]
[353737227,1740000656342,-787.12,0.00016438,2]
[353737228,1740000656352,-787.12,0.00016438,2]
[353737229,1740000656363,-787.12,0.00016438,2]
[353737230,1740000656372,-787.12,0.00016438,2]
[353737231,1740000656382,-787.12,0.00016438,2]
[353737232,1740000656393,-787.12,0.00016438,2]
[353737233,1740000656403,-787.12,0.00016438,2]
[353737234,1740000656414,-787.12,0.00016438,2]
[353737235,1740000656424,-787.12,0.00016438,2]
[353737236,1740000656434,-787.12,0.00016438,2]
[353737237,1740000656445,-787.12,0.00016438,2]
[353737238,1740000656455,-787.12,0.00016438,2]
[353737239,1740000656466,-787.12,0.00016438,2]
[353737240,1740000656476,-787.12,0.00016438,2]
[353737241,1740000656487,-787.12,0.00016438,2]
[353737242,1740000656497,-787.12,0.00016438,2]
[353737243,1740000656507,-787.12,0.00016438,2]
[353737244,1740000656517,-787.12,0.00016438,2]
[353737245,1740000656527,-787.12,0.00016438,2]
[353737246,1740000656537,-787.21687781,0.00016438,2]
[353737247,1740000656548,-1000.0,0.00016438,2]
[353737248,1740000656558,-1000.0,0.00016438,2]
[353737249,1740000656568,-397.53754396,0.00016438,2]
[353737250,1740000656579,-12000.0,0.00016438,2]
[353737251,1740000656588,-664.34083493,0.0001644,2]
[353737252,1740000656598,-27933.97,0.000165,2]
[353737253,1740000656608,-664.34083493,0.0001654,2]
[353737254,1740000656618,-664.34083493,0.0001664,2]
[353737255,1740000656629,-664.34083493,0.0001674,2]
[353737256,1740000656640,-823.0,0.00016762,2]
[353737257,1740000656653,-664.34083493,0.0001684,2]
[353737258,1740000656664,-465.09424748,0.00016864,2]
[353737259,1740000656675,-2451.42546737,0.0001687,2]
[353737260,1740000656687,-664.34083493,0.0001694,2]
[353737261,1740000656697,-500.0,0.00017,7]
[353737262,1740000656706,-500.0,0.00017,7]
[353737263,1740000656716,-500.0,0.00017,7]
[353737264,1740000656727,-500.0,0.00017,7]
[353737265,1740000656736,-500.0,0.00017,7]
[353737266,1740000656746,-500.0,0.00017,7]
[353737267,1740000656756,-500.0,0.00017,7]
[353737268,1740000656766,-500.0,0.00017,7]
[353737269,1740000656775,-500.0,0.00017,7]
[353737270,1740000656785,-566.69,0.00017,7]
[353737271,1740000656795,-1000.0,0.00017,2]
[353737272,1740000656809,-710.1913072,0.00017021,2]
[353737273,1740000656818,-664.34083493,0.0001704,2]
[353737274,1740000656828,-465.09402476,0.00017098,2]
[353737275,1740000656838,-199.53845923,0.0001711,2]
[353737276,1740000656848,-508.343533,0.00017123,2]
[353737277,1740000656858,-664.34083493,0.0001714,2]
[353737278,1740000656867,-700.0,0.00017178,2]
[353737279,1740000656877,-1000.0,0.000172,2]
[353737280,1740000656887,-664.34083493,0.0001724,2]
[353737281,1740000656897,-600.0,0.0001728,2]
[353737282,1740000656907,-664.34083493,0.0001734,2]
[353737283,1740000656916,-168.73426959,0.0001737,2]
[353737284,1740000656926,-1000.0,0.000174,2]
[353737285,1740000656936,-664.34083493,0.0001744,2]
[353737286,1740000656947,-600.0,0.0001746,2]
[353737287,1740000656957,-1000.0,0.000175,2]
[353737288,1740000656966,-1000.000001,0.000175,2]
[353737289,1740000656977,-664.34083493,0.0001754,2]
[353737290,1740000656986,-1000.0,0.000176,2]
[353737291,1740000656996,-24329.48904476,0.000176,2]
[353737292,1740000657006,-2288.0,0.0001761,2]
[353737293,1740000657016,-265.108,0.0001761,2]
[353737294,1740000657026,-396.0,0.0001761,2]
[353737295,1740000657036,-13275.53870192,0.00017622,2]
[353737296,1740000657046,-2500.0,0.00017631,2]
[353737297,1740000657056,-2500.0,0.0001764,2]
[353737298,1740000657066,-2843.1019312,0.0001764,2]
[353737299,1740000657075,-664.34083493,0.0001764,2]
[353737300,1740000657086,-600.0,0.0001764,2]
[353737301,1740000657096,-557.1188801,0.00017649,2]
[353737302,1740000657106,-557.1188801,0.00017649,2]
[353737303,1740000657116,-557.1188801,0.00017649,2]
[353737304,1740000657126,-1114.2377602,0.00017649,2]
[353737305,1740000657136,-557.1188801,0.00017649,2]
[353737306,1740000657145,-557.1188801,0.00017649,2]
[353737307,1740000657155,-557.1188801,0.00017649,2]
[353737308,1740000657165,-557.1188801,0.00017649,2]
[353737309,1740000657175,-557.1188801,0.00017649,2]
[353737310,1740000657185,-557.1188801,0.00017649,2]
[353737311,1740000657195,-557.1188801,0.00017649,2]
[353737312,1740000657205,-557.1188801,0.00017649,2]
[353737313,1740000657214,-557.1188801,0.00017649,2]
[353737314,1740000657224,-557.1188801,0.00017649,2]
[353737315,1740000657234,-2500.0,0.00017649,2]
[353737316,1740000657249,-2500.0,0.00017657,2]
[353737317,1740000657259,-2500.0,0.00017666,2]
[353737318,1740000657269,-2500.0,0.00017675,2]
[353737319,1740000657279,-664.34083493,0.0001774,2]
[353737320,1740000657289,-6234.85345764,0.000178,2]
[353737321,1740000657299,-21774.85664714,0.0001782,2]
[353737322,1740000657309,-600.0,0.0001782,2]
[353737323,1740000657319,-664.34083493,0.0001784,2]
[353737324,1740000657329,-314.0,0.0001784,2]
[353737325,1740000657338,-1000.0,0.00017841,2]
[353737326,1740000657348,-1000.0,0.00017857,2]
[353737327,1740000657358,-160.383722,0.00017861,10]
[353737328,1740000657367,-1000.0,0.00017868,2]
[353737329,1740000657377,-1000.0,0.00017876,2]
[353737330,1740000657387,-828.75654214,0.00017884,2]
[353737331,1740000657397,-1000.0,0.00017887,2]
[353737332,1740000657407,-153.0,0.00017929,2]
[353737333,1740000657417,-306.0,0.00017929,2]
[353737334,1740000657426,-153.0,0.00017929,2]
[353737335,1740000657437,-153.0,0.00017929,2]
[353737336,1740000657447,-153.0,0.00017929,2]
[353737337,1740000657458,-710.1913072,0.00017933,2]
[353737338,1740000657468,-664.34083493,0.0001794,2]
[353737339,1740000657478,-1000.0,0.0001795,4]
[353737340,1740000657488,-160.383722,0.0001796,4]
[353737341,1740000657499,-990.0,0.00017968,2]
[353737342,1740000657509,-1000.0,0.00017969,2]
[353737343,1740000657518,-1000.0,0.0001797,2]
[353737344,1740000657528,-160.383722,0.0001797,2]
[353737345,1740000657538,-150.0,0.00017973,2]
[353737346,1740000657548,-1000.0,0.00017975,2]
[353737347,1740000657557,-5000.0,0.00017986,2]
[353737348,1740000657567,-5000.0,0.00017986,2]
[353737349,1740000657577,-5000.0,0.00017986,2]
[353737350,1740000657588,-5000.0,0.00017986,2]
[353737351,1740000657597,-5000.0,0.00017986,2]
[353737352,1740000657612,-182544.8334806,0.0001799,15]
[353737353,1740000657622,-1000.0,0.00017993,2]
[353737354,1740000657632,-151.0,0.00017999,2]
[353737355,1740000657643,-427.85438938,0.00017999,2]
[353737356,1740000657655,-160.0,0.00017999,2]
[353737357,1740000657665,-152732.49219113,0.00018,5]
[353737358,1740000657675,-33917.56134794,0.00018,5]
[353737359,1740000657687,-712533.71203377,0.00018,15]
[353737360,1740000657698,-2000.0,0.00018,2]
[353737361,1740000657708,-500.0,0.00018,2]
[353737362,1740000657718,-500.0,0.00018,2]
[353737363,1740000657728,-500.0,0.00018,2]
[353737364,1740000657738,-500.0,0.00018,2]
[353737365,1740000657749,-500.0,0.00018,2]
[353737366,1740000657759,-500.0,0.00018,2]
[353737367,1740000657770,-500.0,0.00018,2]
[353737368,1740000657780,-500.0,0.00018,2]
[353737369,1740000657791,-500.0,0.00018,2]
[353737370,1740000657800,-501.17448677,0.00018,2]
[353737371,1740000657810,-500.0,0.00018,2]
[353737372,1740000657820,-500.0,0.00018,2]
[353737373,1740000657830,-500.0,0.00018,2]
[353737374,1740000657839,-500.0,0.00018,2]
[353737375,1740000657850,-500.0,0.00018,2]
[353737376,1740000657859,-500.0,0.00018,2]
[353737377,1740000657869,-500.0,0.00018,2]
[353737378,1740000657879,-500.0,0.00018,2]
[353737379,1740000657888,-266.0,0.00018,2]
[353737380,1740000657899,-189.25,0.00018,2]
[353737381,1740000657910,-26789.79,0.00018,2]
[353737382,1740000657921,-189.25,0.00018,2]
[353737383,1740000657931,-155.0,0.00018,30]
[353737384,1740000657942,-1414371.84149819,0.00018,15]
[353737385,1740000658042,-1856.84192456,0.00018,15]
[353737386,1740000658208,-501.73,0.00013698,2]
[353737387,1740000658219,-500.0,0.00014027,2]
[353737388,1740000658231,-500.0,0.00014109,2]
[353737389,1740000658241,-500.0,0.00014191,2]
[353737390,1740000658252,-500.0,0.00014273,2]
[353737391,1740000658263,-500.0,0.00014356,2]
[353737392,1740000658274,-246.9,0.00014438,2]
[353737393,1740000658284,-545.771,0.00017228,2]
[353737394,1740000658295,-29632.40094465,0.00018,15]
[353737395,1740000658619,-490.65712366,0.00013698,2]
[353737396,1740000658629,-500.0,0.00013698,2]
[353737397,1740000658639,-500.0,0.00013698,2]
[353737398,1740000658652,-501.73,0.0001378,2]
[353737399,1740000658661,-501.73,0.00013863,2]
[353737400,1740000658671,-501.73,0.00013945,2]
[353737401,1740000658680,-70.99459441,0.00014027,2]
[353737402,1740000658698,-500.0,0.0001378,2]
[353737403,1740000658707,-195.44042931,0.00014027,2]
[353737404,1740000658720,-235.29497628,0.00014027,2]
[353737405,1740000658729,-501.73,0.00014109,2]
[353737406,1740000658738,-501.73,0.00014191,2]
[353737407,1740000658748,-501.73,0.00014273,2]
[353737408,1740000658758,-501.73,0.00014356,2]
[353737409,1740000658767,-501.73,0.00014438,2]
[353737410,1740000658776,-501.73,0.0001452,2]
[353737411,1740000658786,-501.73,0.00014602,2]
[353737412,1740000658797,-768098.44096965,0.00018,15]
[353737417,1740000867539,164.29062,9.041e-05,2]
[353737476,1740001832932,-300.0,0.00012691,2]
[353737478,1740001832942,-10634.4231157,0.00012692,2]
[353737480,1740001832952,-217.89154688,0.00013598,2]
[353737482,1740001832962,-500.0,0.00013598,2]
[353737484,1740001832972,-500.0,0.00013598,2]
[353737486,1740001832982,-500.0,0.00013598,2]
[353737488,1740001832995,-500.0,0.00013598,2]
[353737490,1740001833004,-500.0,0.00013598,2]
[353737492,1740001833015,-500.0,0.00013598,2]
[353737494,1740001833025,-500.0,0.00013598,2]
[353737497,1740001833037,-500.0,0.00013598,2]
[353737500,1740001833047,-500.0,0.00013598,2]
[353737502,1740001833057,-500.0,0.00013598,2]
[353737505,1740001833068,-500.0,0.00013598,2]
[353737508,1740001833079,-500.0,0.00013598,2]
[353737511,1740001833089,-499.27269596,0.00013598,2]
[353737514,1740001833099,-500.0,0.00013598,2]
[353737517,1740001833110,-500.0,0.00013598,2]
[353737520,1740001833123,-500.0,0.00013598,2]
[353737523,1740001833133,-500.0,0.00013598,2]
[353737525,1740001833144,-400.61586665,0.00013598,2]
[353737527,1740001833155,-500.0,0.00013598,2]
[353737529,1740001833165,-500.0,0.00013598,2]
[353737531,1740001833175,-500.0,0.00013598,2]
[353737533,1740001833185,-500.0,0.00013598,2]
[353737534,1740001833195,-500.0,0.00013598,2]
[353737536,1740001833205,-500.0,0.00013598,2]
[353737537,1740001833215,-500.0,0.00013598,2]
[353737539,1740001833225,-500.0,0.00013598,2]
[353737541,1740001833237,-500.0,0.00013598,2]
[353737542,1740001833247,-3521.87422583,0.00013599,2]
[353737560,1740001838396,-1879.9999995,0.00013599,2]
[353737561,1740001838408,-272.10094707,0.00013599,2]
[353737562,1740001838420,-1145.37597596,0.00013599,2]
[353737563,1740001838432,-13965.10112221,0.00013599,2]
[353737564,1740001838457,-18186.74212138,0.00013599,2]
[353737565,1740001838466,-500.51061943,0.00013673,2]
[353737566,1740001838476,-500.0,0.00013673,2]
[353737567,1740001838485,-235.57027522,0.00013673,2]
[353737568,1740001838495,-500.0,0.00013673,2]
[353737569,1740001838505,-415.98368025,0.00013673,2]
[353737570,1740001838515,-202.86802049,0.00013697,2]
[353737571,1740001838524,-500.0,0.00013697,2]
[353737572,1740001838534,-394.27463933,0.00013697,2]
[353737573,1740001838543,-500.0,0.00013698,2]
[353737574,1740001838553,-500.0,0.00013698,2]
[353737575,1740001838567,-500.0,0.00013698,2]
[353737576,1740001838577,-501.68634764,0.00013698,2]
[353737577,1740001838587,-500.0,0.00013698,2]
[353737578,1740001838597,-500.0,0.00013698,2]
[353737579,1740001838607,-500.0,0.00013698,2]
[353737580,1740001838616,-500.0,0.00013698,2]
[353737581,1740001838626,-500.0,0.00013698,2]
[353737582,1740001838635,-500.0,0.00013698,2]
[353737583,1740001838645,-500.0,0.00013698,2]
[353737584,1740001838655,-500.0,0.00013698,2]
[353737585,1740001838665,-500.0,0.00013698,2]
[353737586,1740001838675,-500.0,0.00013698,2]
[353737587,1740001838685,-500.0,0.00013698,2]
[353737588,1740001838695,-500.0,0.00013698,2]
[353737589,1740001838705,-542.38774332,0.00013698,2]
[353737590,1740001838715,-500.0,0.00013698,2]
[353737591,1740001838725,-583.85632625,0.00013698,2]
[353737592,1740001838735,-525.68072251,0.00013698,2]
[353737593,1740001838746,-500.0,0.00013698,2]
[353737594,1740001838756,-216.0434352,0.00013698,2]
[353737595,1740001838766,-500.0,0.00013698,2]
[353737596,1740001838775,-501.6429409,0.00013698,2]
[353737597,1740001838785,-500.0,0.00013698,2]
[353737598,1740001838795,-500.0,0.00013698,2]
[353737599,1740001838805,-500.0,0.00013698,2]
[353737600,1740001838814,-500.0,0.00013698,2]
[353737601,1740001838824,-500.36457194,0.00013698,2]
[353737602,1740001838834,-500.0,0.00013698,2]
[353737603,1740001838846,-500.0,0.00013698,2]
[353737604,1740001838856,-500.0,0.00013698,2]
[353737605,1740001838865,-500.0,0.00013698,2]
[353737606,1740001838875,-500.0,0.00013698,2]
[353737607,1740001838885,-502.55514177,0.00013698,2]
[353737608,1740001838895,-500.0,0.00013698,2]
[353737609,1740001838905,-500.0,0.00013698,2]
[353737610,1740001838916,-500.0,0.00013698,2]
[353737611,1740001838926,-500.0,0.00013698,2]
[353737612,1740001838935,-500.0,0.00013698,2]
[353737613,1740001838945,-500.0,0.00013698,2]
[353737614,1740001838955,-500.0,0.00013698,2]
[353737615,1740001838964,-500.0,0.00013698,2]
[353737616,1740001838974,-500.0,0.00013698,2]
[353737617,1740001838985,-500.0,0.00013698,2]
[353737618,1740001838996,-500.0,0.00013698,2]
[353737619,1740001839006,-500.0,0.00013698,2]
[353737620,1740001839016,-500.0,0.00013698,2]
[353737621,1740001839026,-500.0,0.00013698,2]
[353737622,1740001839039,-500.0,0.00013698,5]
[353737623,1740001839049,-500.0,0.00013698,2]
[353737624,1740001839059,-500.0,0.00013698,2]
[353737625,1740001839069,-500.0,0.00013698,2]
[353737626,1740001839079,-500.0,0.00013698,2]
[353737627,1740001839089,-500.0,0.00013698,2]
[353737628,1740001839100,-500.0,0.00013698,2]
[353737629,1740001839110,-500.0,0.00013698,2]
[353737630,1740001839122,-500.0,0.00013698,2]
[353737631,1740001839133,-500.0,0.00013698,2]
[353737632,1740001839142,-500.0,0.00013698,2]
[353737633,1740001839152,-500.0,0.00013698,2]
[353737634,1740001839162,-500.0,0.00013698,2]
[353737635,1740001839172,-500.0,0.00013698,2]
[353737636,1740001839181,-500.0,0.00013698,2]
[353737637,1740001839190,-500.0,0.00013698,2]
[353737638,1740001839201,-500.0,0.00013698,2]
[353737639,1740001839210,-500.0,0.00013698,2]
[353737640,1740001839220,-500.0,0.00013698,2]
[353737641,1740001839229,-500.0,0.00013698,2]
[353737642,1740001839240,-500.0,0.00013698,2]
[353737643,1740001839250,-500.0,0.00013698,2]
[353737644,1740001839259,-500.0,0.00013698,2]
[353737645,1740001839269,-500.0,0.00013698,2]
[353737646,1740001839279,-500.0,0.00013698,2]
[353737647,1740001839290,-500.0,0.00013698,2]
[353737648,1740001839299,-500.0,0.00013698,2]
[353737649,1740001839309,-500.0,0.00013698,2]
[353737650,1740001839318,-500.0,0.00013698,2]
[353737651,1740001839328,-500.0,0.00013698,2]
[353737652,1740001839340,-500.0,0.00013698,2]
[353737653,1740001839350,-506.62491005,0.00013698,2]
[353737654,1740001839360,-500.0,0.00013698,2]
[353737655,1740001839370,-500.0,0.00013698,2]
[353737656,1740001839380,-500.0,0.00013698,2]
[353737657,1740001839389,-500.0,0.00013698,2]
[353737658,1740001839399,-500.0,0.00013698,2]
[353737659,1740001839409,-500.0,0.00013698,2]
[353737660,1740001839418,-500.0,0.00013698,2]
[353737661,1740001839428,-500.0,0.00013698,2]
[353737662,1740001839438,-500.0,0.00013698,2]
[353737663,1740001839448,-629.84909676,0.00013698,2]
[353737664,1740001839457,-500.0,0.00013698,2]
[353737665,1740001839467,-500.0,0.00013698,2]
[353737666,1740001839476,-500.0,0.00013698,2]
[353737667,1740001839485,-500.0,0.00013698,2]
[353737668,1740001839496,-500.0,0.00013698,2]
[353737669,1740001839506,-500.0,0.00013698,2]
[353737670,1740001839515,-500.0,0.00013698,2]
[353737671,1740001839524,-201.45,0.00013698,2]
[353737672,1740001839533,-500.0,0.00013698,2]
[353737673,1740001839543,-500.0,0.00013698,2]
[353737674,1740001839552,-500.0,0.00013698,2]
[353737675,1740001839562,-323.64,0.00013698,2]
[353737676,1740001839572,-287.91622031,0.00013698,2]
[353737677,1740001839582,-500.0,0.00013698,2]
[353737678,1740001839591,-500.0,0.00013698,2]
[353737679,1740001839601,-500.0,0.00013698,2]
[353737680,1740001839610,-500.0,0.00013698,2]
[353737681,1740001839619,-500.0,0.00013698,2]
[353737682,1740001839630,-500.0,0.00013698,2]
[353737683,1740001839642,-429.9137985,0.00013698,2]
[353737684,1740001839654,-500.0,0.00013698,2]
[353737685,1740001839664,-500.0,0.00013698,2]
[353737686,1740001839675,-500.0,0.00013698,2]
[353737687,1740001839684,-500.0,0.00013698,2]
[353737688,1740001839694,-500.0,0.00013698,2]
[353737689,1740001839704,-500.0,0.00013698,2]
[353737690,1740001839714,-500.0,0.00013698,2]
[353737691,1740001839724,-500.0,0.00013698,2]
[353737692,1740001839733,-500.0,0.00013698,2]
[353737693,1740001839744,-500.0,0.00013698,2]
[353737694,1740001839754,-500.0,0.00013698,2]
[353737695,1740001839764,-500.0,0.00013698,2]
[353737696,1740001839774,-500.0,0.00013698,2]
[353737697,1740001839784,-500.0,0.00013698,2]
[353737698,1740001839795,-500.0,0.00013698,2]
[353737699,1740001839804,-320.86510125,0.00013698,2]
[353737700,1740001839814,-500.0,0.00013698,2]
[353737701,1740001839825,-500.0,0.00013698,2]
[353737702,1740001839835,-500.0,0.00013698,2]
[353737703,1740001839847,-500.0,0.00013698,2]
[353737704,1740001839856,-500.0,0.00013698,2]
[353737705,1740001839866,-500.0,0.00013698,2]
[353737706,1740001839876,-500.0,0.00013698,2]
[353737707,1740001839887,-500.0,0.00013698,2]
[353737708,1740001839896,-500.0,0.00013698,2]
[353737709,1740001839906,-500.0,0.00013698,2]
[353737710,1740001839916,-500.0,0.00013698,2]
[353737711,1740001839926,-500.0,0.00013698,2]
[353737712,1740001839936,-500.0,0.00013698,2]
[353737713,1740001839946,-500.0,0.00013698,2]
[353737714,1740001839958,-500.0,0.00013698,2]
[353737715,1740001839967,-500.0,0.00013698,2]